[Event "Irish International Open 2019"]
[Site "Dublin"]
[Date "2019.04.22"]
[Round "9.27"]
[White "O'Mahoney, Keegan"]
[Black "Honner, Mervyn"]
[Result "1-0"]
[ECO "A53"]
[WhiteElo "1875"]
[BlackElo "1441"]
[Annotator "NA"]
[PlyCount "69"]
[EventDate "2019.02.28"]
[EventType "swiss"]
[EventCountry "IRL"]
[SourceTitle "playchess.com"]
[Source "ChessBase"]
[SourceQuality "1"]
[TimeControl "5400+30"]

1. d4 {[%emt 0:00:00]} Nf6 {[%emt 0:00:07]} 2. Nf3 {[%emt 0:00:00]} d6 {[%emt 0:00:46]} 3. c4 {[%emt 0:00:00]} Bg4 {[%emt 0:00:15]} 4. Nc3 {[%emt 0:02:30]} Bxf3 {[%emt 0:00:18]} 5. exf3 {[%emt 0:00:06]} g6 {[%emt 0:00:37]} 6. Be3 {[%emt 0:00:57]} Bg7 {[%emt 0:00:10]} 7. Qd2 {[%emt 0:00:47]} O-O {[%emt 0:00:14]} 8. Bh6 {[%emt 0:01:27]} Nc6 {[%emt 0:00:56]} 9. O-O-O {[%emt 0:02:40]} e5 {[%emt 0:01:55]} 10. d5 {[%emt 0:01:38]} Nd4 {[%emt 0:01:03]} 11. Bd3 {[%emt 0:03:17]} Nd7 {[%emt 0:02:46]} 12. h4 {[%emt 0:04:57]} Nc5 {[%emt 0:01:39]} 13. Bc2 {[%emt 0:02:10]} Nxc2 {[%emt 0:02:22]} 14. Kxc2 {[%emt 0:00:37]} Qf6 {[%emt 0:02:23]} 15. b4 {[%emt 0:13:09]} Bxh6 {[%emt 0:03:33]} 16. Qxh6 {[%emt 0:01:25]} Qf5+ {[%emt 0:01:03]} 17. Kb2 {[%emt 0:33:33]} Nd3+ {[%emt 0:02:53]} 18. Rxd3 {[%emt 0:00:06]} Qxd3 {[%emt 0:00:39]} 19. h5 {[%emt 0:00:52]} f6 {[%emt 0:01:34]} 20. hxg6 {[%emt 0:13:02]} Qxg6 {[%emt 0:00:24]} 21. Qh4 {[%emt 0:01:05]} Rf7 {[%emt 0:00:41]} 22. Ne4 {[%emt 0:01:30]} a5 {[%emt 0:01:25]} 23. Rh3 {[%emt 0:01:46]} Qf5 {[%emt 0:03:03]} 24. b5 {[%emt 0:02:26]} Kf8 {[%emt 0:00:33]} 25. b6 {[%emt 0:04:16]} Ra6 {[%emt 0:02:28]} 26. bxc7 {[%emt 0:00:32]} Rb6+ {[%emt 0:00:14]} 27. Kc3 {[%emt 0:00:35]} Rxc7 {[%emt 0:07:08]} 28. Qh6+ {[%emt 0:00:59]} Kf7 {[%emt 0:02:56]} 29. Qxh7+ {[%emt 0:00:44]} Qxh7 {[%emt 0:00:30]} 30. Rxh7+ {[%emt 0:00:04]} Kg6 {[%emt 0:00:22]} 31. Rxc7 {[%emt 0:00:06]} f5 {[%emt 0:00:58]} 32. c5 {[%emt 0:01:18]} dxc5 {[%emt 0:00:46]} 33. Nxc5 {[%emt 0:00:16]} Rb5 {[%emt 0:00:27]} 34. d6 {[%emt 0:00:53]} Kf6 {[%emt 0:00:34]} 35. d7 {[%emt 0:00:16]} 1-0